[Event "Schack-SM 2023: Junior-SM"]
[Site "Helsingborg Arena, Mellersta Stenbocksgatan 14, Helsingborg, Sweden"]
[Date "2023.07.07"]
[Round "7.2"]
[White "Joensson, Oscar"]
[Black "Dingertz, Erik"]
[Result "1-0"]
[TimeControl "90 minutes for 40 moves + 30 minutes for the rest of the game + 30 seconds per move from move one."]
[WhiteElo "2077"]
[BlackElo "2090"]

1. d4 {[%clk 01:30:58]} {[%emt 00:00:01]} Nf6 {[%clk 01:30:54]} {[%emt
00:00:07]} 2. c4 {[%clk 01:31:23]} {[%emt 00:00:04]} e6 {[%clk 01:31:19]}
{[%emt 00:00:04]} 3. g3 {[%clk 01:31:49]} {[%emt 00:00:05]} d5 {[%clk
01:31:46]} {[%emt 00:00:04]} 4. Bg2 {[%clk 01:32:13]} {[%emt 00:00:05]} Be7
{[%clk 01:32:13]} {[%emt 00:00:03]} 5. Nf3 {[%clk 01:32:38]} {[%emt 00:00:05]}
O-O {[%clk 01:32:39]} {[%emt 00:00:04]} 6. O-O {[%clk 01:33:03]} {[%emt
00:00:05]} dxc4 {[%clk 01:33:06]} {[%emt 00:00:03]} 7. Qc2 {[%clk 01:33:26]}
{[%emt 00:00:07]} a6 {[%clk 01:33:34]} {[%emt 00:00:03]} 8. a4 {[%clk
01:33:51]} {[%emt 00:00:05]} Bd7 {[%clk 01:34:00]} {[%emt 00:00:03]} 9. Qxc4
{[%clk 01:29:42]} {[%emt 00:04:39]} Bc6 {[%clk 01:33:35]} {[%emt 00:00:56]} 10.
Bf4 {[%clk 01:30:03]} {[%emt 00:00:09]} Bd6 {[%clk 01:33:02]} {[%emt 00:01:03]}
11. Bg5 {[%clk 01:27:29]} {[%emt 00:03:04]} h6 {[%clk 01:32:26]} {[%emt
00:01:06]} 12. Bxf6 {[%clk 01:27:31]} {[%emt 00:00:28]} Qxf6 {[%clk 01:32:51]}
{[%emt 00:00:06]} 13. Nc3 {[%clk 01:27:15]} {[%emt 00:00:45]} Bxf3 {[%clk
01:19:57]} {[%emt 00:13:24]} 14. Bxf3 {[%clk 01:27:11]} {[%emt 00:00:34]} c6
{[%clk 01:20:14]} {[%emt 00:00:13]} 15. Ne4 {[%clk 00:59:18]} {[%emt 00:28:23]}
Qe7 {[%clk 01:19:42]} {[%emt 00:01:02]} 16. Nxd6 {[%clk 00:56:39]} {[%emt
00:03:09]} Qxd6 {[%clk 01:20:03]} {[%emt 00:00:09]} 17. a5 {[%clk 00:52:35]}
{[%emt 00:04:35]} Nd7 {[%clk 01:16:49]} {[%emt 00:03:44]} 18. Rfd1 {[%clk
00:50:51]} {[%emt 00:02:13]} Nf6 {[%clk 01:05:43]} {[%emt 00:11:36]} 19. e4
{[%clk 00:44:09]} {[%emt 00:07:12]} e5 {[%clk 01:03:52]} {[%emt 00:02:21]} 20.
Ra3 {[%clk 00:38:21]} {[%emt 00:06:18]} Rfe8 {[%clk 01:03:20]} {[%emt
00:01:02]} 21. Rad3 {[%clk 00:33:54]} {[%emt 00:04:57]} Rac8 {[%clk 00:59:12]}
{[%emt 00:04:38]} 22. Bg2 {[%clk 00:27:17]} {[%emt 00:07:06]} exd4 {[%clk
00:57:49]} {[%emt 00:01:53]} 23. Rxd4 {[%clk 00:25:50]} {[%emt 00:01:58]} Qe5
{[%clk 00:55:43]} {[%emt 00:02:36]} 24. Bh3 {[%clk 00:22:17]} {[%emt 00:04:02]}
Rc7 {[%clk 00:52:04]} {[%emt 00:04:10]} 25. b4 {[%clk 00:22:14]} {[%emt
00:00:33]} c5 {[%clk 00:46:01]} {[%emt 00:06:33]} 26. Rd8 {[%clk 00:21:13]}
{[%emt 00:01:30]} Rce7 {[%clk 00:44:33]} {[%emt 00:01:59]} 27. bxc5 {[%clk
00:17:43]} {[%emt 00:04:00]} Qxe4 {[%clk 00:42:48]} {[%emt 00:02:15]} 28. Rxe8+
{[%clk 00:14:43]} {[%emt 00:03:30]} Rxe8 {[%clk 00:39:39]} {[%emt 00:03:38]} 29.
Qb3 {[%clk 00:14:38]} {[%emt 00:00:35]} Qe2 {[%clk 00:36:56]} {[%emt 00:03:13]}
30. Bf1 {[%clk 00:13:28]} {[%emt 00:01:40]} Qh5 {[%clk 00:36:41]} {[%emt
00:00:45]} 31. Rc1 {[%clk 00:11:41]} {[%emt 00:02:18]} Re7 {[%clk 00:31:37]}
{[%emt 00:05:33]} 32. Bg2 {[%clk 00:11:11]} {[%emt 00:00:59]} Nd7 {[%clk
00:23:29]} {[%emt 00:08:39]} 33. Qxb7 {[%clk 00:10:49]} {[%emt 00:00:52]} Qg5
{[%clk 00:23:22]} {[%emt 00:00:37]} 34. f4 {[%clk 00:09:27]} {[%emt 00:01:52]}
Qf6 {[%clk 00:23:23]} {[%emt 00:00:30]} 35. c6 {[%clk 00:08:08]} {[%emt
00:01:50]} Qd4+ {[%clk 00:23:24]} {[%emt 00:00:28]} 36. Kh1 {[%clk 00:08:28]}
{[%emt 00:00:09]} Qe3 {[%clk 00:22:33]} {[%emt 00:01:22]} 37. Rf1 {[%clk
00:07:46]} {[%emt 00:01:12]} Nc5 {[%clk 00:22:19]} {[%emt 00:00:44]} 38. Qb8+
{[%clk 00:08:01]} {[%emt 00:00:15]} Re8 {[%clk 00:22:29]} {[%emt 00:00:19]} 39.
c7 {[%clk 00:08:21]} {[%emt 00:00:10]} Qe6 {[%clk 00:21:00]} {[%emt 00:01:59]}
40. f5 {[%clk 00:07:27]} {[%emt 00:01:25]} Qd7 {[%clk 00:21:00]} {[%emt
00:00:29]} 41. Rb1 {[%clk 00:07:45]} {[%emt 00:00:12]} Kh7 {[%clk 00:20:48]}
{[%emt 00:00:42]} 42. Qb6 {[%clk 00:29:51]} {[%emt 00:08:24]} Qxf5 {[%clk
00:46:10]} {[%emt 00:05:08]} 43. Rf1 {[%clk 00:26:30]} {[%emt 00:03:50]} Qe5
{[%clk 00:45:45]} {[%emt 00:00:51]} 44. Rc1 {[%clk 00:25:19]} {[%emt 00:01:45]}
Qf5 {[%clk 00:38:39]} {[%emt 00:07:36]} 45. Qxc5 {[%clk 00:24:00]} {[%emt
00:01:49]} Re1+ {[%clk 00:38:55]} {[%emt 00:00:14]} 46. Qg1 {[%clk 00:24:24]}
{[%emt 00:00:05]} Rxg1+ {[%clk 00:38:41]} {[%emt 00:00:45]} 47. Kxg1 {[%clk
00:24:49]} {[%emt 00:00:05]} 1-0

[ePGN "0.1;DGT LiveChess/2.2.5"]

[Event "Schack-SM 2023: Sverigemastarklassen"]
[Site "Helsingborg Arena, Mellersta Stenbocksgatan 14, Helsingborg, Sweden"]
[Date "2023.07.07"]
[Round "7.1"]
[White "Johansson, Linus"]
[Black "Pantzar, Milton"]
[Result "1/2-1/2"]
[TimeControl "90 minutes for 40 moves + 30 minutes for the rest of the game + 30 seconds per move from move one."]
[WhiteTitle "IM"]
[BlackTitle "IM"]
[WhiteFideId "1711113"]
[BlackFideId "1721003"]
[WhiteElo "2466"]
[BlackElo "2442"]

1. d4 {[%clk 01:29:35]} {[%emt 00:01:15]} d5 {[%clk 01:30:55]} {[%emt
00:00:15]} 2. c4 {[%clk 01:30:00]} {[%emt 00:00:04]} e6 {[%clk 01:31:18]}
{[%emt 00:00:08]} 3. Nc3 {[%clk 01:30:26]} {[%emt 00:00:04]} Nf6 {[%clk
01:31:25]} {[%emt 00:00:22]} 4. cxd5 {[%clk 01:30:48]} {[%emt 00:00:08]} exd5
{[%clk 01:31:48]} {[%emt 00:00:07]} 5. Bg5 {[%clk 01:31:12]} {[%emt 00:00:06]}
c6 {[%clk 01:31:57]} {[%emt 00:00:22]} 6. e3 {[%clk 01:31:35]} {[%emt
00:00:07]} Be7 {[%clk 01:31:47]} {[%emt 00:00:40]} 7. Bd3 {[%clk 01:31:54]}
{[%emt 00:00:11]} Nbd7 {[%clk 01:30:07]} {[%emt 00:02:10]} 8. Qc2 {[%clk
01:29:33]} {[%emt 00:02:50]} O-O {[%clk 01:30:12]} {[%emt 00:00:25]} 9. Nge2
{[%clk 01:28:03]} {[%emt 00:02:00]} Re8 {[%clk 01:29:39]} {[%emt 00:01:04]} 10.
O-O {[%clk 01:27:41]} {[%emt 00:00:52]} Nf8 {[%clk 01:29:15]} {[%emt 00:00:54]}
11. Rab1 {[%clk 01:25:57]} {[%emt 00:02:15]} a5 {[%clk 01:26:44]} {[%emt
00:03:01]} 12. f3 {[%clk 01:15:04]} {[%emt 00:11:22]} Ng6 {[%clk 01:21:37]}
{[%emt 00:05:37]} 13. Kh1 {[%clk 01:04:49]} {[%emt 00:10:45]} h6 {[%clk
01:14:00]} {[%emt 00:08:07]} 14. Bxf6 {[%clk 00:42:25]} {[%emt 00:22:54]} Bxf6
{[%clk 01:14:14]} {[%emt 00:00:16]} 15. Qd2 {[%clk 00:41:18]} {[%emt 00:01:37]}
b5 {[%clk 00:59:39]} {[%emt 00:15:06]} 16. Rbe1 {[%clk 00:33:43]} {[%emt
00:08:04]} Ra7 {[%clk 00:56:05]} {[%emt 00:04:05]} 17. Ng1 {[%clk 00:30:55]}
{[%emt 00:03:18]} Rae7 {[%clk 00:49:21]} {[%emt 00:07:14]} 18. g3 {[%clk
00:30:39]} {[%emt 00:00:46]} Nf8 {[%clk 00:31:12]} {[%emt 00:18:40]} 19. f4
{[%clk 00:30:15]} {[%emt 00:00:53]} Bb7 {[%clk 00:21:21]} {[%emt 00:10:22]} 20.
Nf3 {[%clk 00:30:16]} {[%emt 00:00:28]} Ne6 {[%clk 00:20:43]} {[%emt 00:01:07]}
21. Ne5 {[%clk 00:25:57]} {[%emt 00:04:49]} Bxe5 {[%clk 00:20:06]} {[%emt
00:01:07]} 22. fxe5 {[%clk 00:26:03]} {[%emt 00:00:24]} b4 {[%clk 00:19:17]}
{[%emt 00:01:19]} 23. Ne2 {[%clk 00:24:33]} {[%emt 00:02:00]} c5 {[%clk
00:18:59]} {[%emt 00:00:48]} 24. h4 {[%clk 00:24:28]} {[%emt 00:00:34]} Qb6
{[%clk 00:16:29]} {[%emt 00:03:01]} 25. Kh2 {[%clk 00:19:32]} {[%emt 00:05:26]}
Ba6 {[%clk 00:15:19]} {[%emt 00:01:40]} 26. Nf4 {[%clk 00:19:03]} {[%emt
00:00:58]} Bxd3 {[%clk 00:13:11]} {[%emt 00:02:38]} 27. Qxd3 {[%clk 00:18:25]}
{[%emt 00:01:08]} Rd8 {[%clk 00:12:08]} {[%emt 00:01:34]} 28. Rc1 {[%clk
00:16:32]} {[%emt 00:02:22]} cxd4 {[%clk 00:09:50]} {[%emt 00:02:48]} 29. Nxe6
{[%clk 00:16:49]} {[%emt 00:00:14]} Rxe6 {[%clk 00:09:39]} {[%emt 00:00:41]} 30.
exd4 {[%clk 00:16:40]} {[%emt 00:00:38]} Rc6 {[%clk 00:08:04]} {[%emt
00:02:05]} 31. Qf5 {[%clk 00:09:16]} {[%emt 00:07:54]} Rxc1 {[%clk 00:07:07]}
{[%emt 00:01:28]} 32. Qxf7+ {[%clk 00:08:35]} {[%emt 00:01:10]} Kh8 {[%clk
00:07:33]} {[%emt 00:00:04]} 33. Rxc1 {[%clk 00:08:57]} {[%emt 00:00:08]} Qxd4
{[%clk 00:07:56]} {[%emt 00:00:08]} 34. Qf4 {[%clk 00:09:07]} {[%emt 00:00:20]}
Qxb2+ {[%clk 00:07:09]} {[%emt 00:01:17]} 35. Kh3 {[%clk 00:09:28]} {[%emt
00:00:08]} Qe2 {[%clk 00:05:34]} {[%emt 00:02:05]} 36. Rc7 {[%clk 00:04:53]}
{[%emt 00:05:06]} Re8 {[%clk 00:03:46]} {[%emt 00:02:17]} 37. Rxg7 {[%clk
00:04:27]} {[%emt 00:00:55]} Kxg7 {[%clk 00:03:47]} {[%emt 00:00:30]} 38. Qf6+
{[%clk 00:04:50]} {[%emt 00:00:07]} Kg8 {[%clk 00:04:11]} {[%emt 00:00:06]} 39.
Qg6+ {[%clk 00:05:08]} {[%emt 00:00:12]} Kf8 {[%clk 00:04:35]} {[%emt
00:00:06]} 40. Qf6+ {[%clk 00:05:14]} {[%emt 00:00:24]} Kg8 {[%clk 00:05:00]}
{[%emt 00:00:06]} 41. Qg6+ {[%clk 00:05:40]} {[%emt 00:00:04]} Kf8 {[%clk
00:05:24]} {[%emt 00:00:05]} 1/2-1/2

[Event "Schack-SM 2023: Junior-SM"]
[Site "Helsingborg Arena, Mellersta Stenbocksgatan 14, Helsingborg, Sweden"]
[Date "2023.07.07"]
[Round "7.3"]
[White "Persson, Sebastian 2007"]
[Black "Ostlund, Joar"]
[Result "0-1"]
[TimeControl "90 minutes for 40 moves + 30 minutes for the rest of the game + 30 seconds per move from move one."]
[BlackTitle "CM"]
[WhiteElo "1947"]
[BlackElo "2265"]

1. d4 {[%clk 01:30:55]} {[%emt 00:00:05]} Nf6 {[%clk 01:30:45]} {[%emt
00:00:16]} 2. Nf3 {[%clk 01:31:15]} {[%emt 00:00:10]} d5 {[%clk 01:31:07]}
{[%emt 00:00:08]} 3. c4 {[%clk 01:31:36]} {[%emt 00:00:08]} e6 {[%clk
01:31:28]} {[%emt 00:00:08]} 4. Bg5 {[%clk 01:31:59]} {[%emt 00:00:08]} Be7
{[%clk 01:31:49]} {[%emt 00:00:09]} 5. e3 {[%clk 01:32:21]} {[%emt 00:00:08]}
h6 {[%clk 01:32:10]} {[%emt 00:00:09]} 6. Bh4 {[%clk 01:31:20]} {[%emt
00:01:32]} O-O {[%clk 01:32:20]} {[%emt 00:00:18]} 7. Nbd2 {[%clk 01:31:20]}
{[%emt 00:00:31]} b6 {[%clk 01:30:44]} {[%emt 00:02:06]} 8. Be2 {[%clk
01:30:36]} {[%emt 00:01:13]} Bb7 {[%clk 01:30:39]} {[%emt 00:00:36]} 9. O-O
{[%clk 01:30:34]} {[%emt 00:00:32]} Nbd7 {[%clk 01:29:56]} {[%emt 00:01:12]} 10.
Rc1 {[%clk 01:30:12]} {[%emt 00:00:52]} c5 {[%clk 01:26:39]} {[%emt 00:03:47]}
11. cxd5 {[%clk 01:29:50]} {[%emt 00:00:53]} Bxd5 {[%clk 01:11:09]} {[%emt
00:16:00]} 12. a4 {[%clk 01:23:14]} {[%emt 00:07:06]} Ne4 {[%clk 01:05:22]}
{[%emt 00:06:18]} 13. Bxe7 {[%clk 01:22:04]} {[%emt 00:01:39]} Qxe7 {[%clk
01:05:44]} {[%emt 00:00:07]} 14. Nxe4 {[%clk 01:13:40]} {[%emt 00:08:54]} Bxe4
{[%clk 01:06:06]} {[%emt 00:00:09]} 15. a5 {[%clk 01:13:49]} {[%emt 00:00:22]}
Rab8 {[%emt 00:28:21]} 16. Qa4 {[%emt 00:07:18]} bxa5 {[%emt 00:06:04]} 17.
Qxa5 {[%clk 00:57:27]} {[%emt 00:01:47]} Rxb2 18. Nd2 {[%emt 00:08:56]} Ba8
{[%clk 00:33:29]} {[%emt 00:00:02]} 19. dxc5 {[%clk 00:51:04]} {[%emt
00:06:52]} Nxc5 {[%clk 00:30:29]} {[%emt 00:03:31]} 20. Qxc5 {[%clk 00:49:41]}
{[%emt 00:01:54]} Qxc5 {[%clk 00:30:20]} {[%emt 00:00:39]} 21. Rxc5 {[%clk
00:50:04]} {[%emt 00:00:07]} Rxd2 {[%clk 00:30:45]} {[%emt 00:00:05]} 22. Bf3
{[%clk 00:47:59]} {[%emt 00:02:35]} Bxf3 {[%clk 00:29:09]} {[%emt 00:02:05]} 23.
gxf3 {[%clk 00:48:21]} {[%emt 00:00:07]} Ra2 {[%clk 00:26:30]} {[%emt
00:03:10]} 24. Rfc1 {[%clk 00:35:17]} {[%emt 00:13:34]} Rd8 {[%clk 00:20:28]}
{[%emt 00:06:32]} 25. Rc8 {[%clk 00:35:24]} {[%emt 00:00:22]} Rad2 {[%clk
00:16:28]} {[%emt 00:04:30]} 26. R1c7 {[%clk 00:33:32]} {[%emt 00:02:22]} a5
{[%clk 00:14:54]} {[%emt 00:02:04]} 27. Rxd8+ {[%clk 00:33:49]} {[%emt
00:00:13]} Rxd8 {[%clk 00:15:18]} {[%emt 00:00:06]} 28. Ra7 {[%clk 00:34:11]}
{[%emt 00:00:08]} Rd5 {[%clk 00:14:59]} {[%emt 00:00:49]} 29. Ra8+ {[%clk
00:33:57]} {[%emt 00:00:44]} Kh7 {[%clk 00:15:23]} {[%emt 00:00:07]} 30. Kg2
{[%clk 00:34:16]} {[%emt 00:00:10]} Kg6 {[%clk 00:14:59]} {[%emt 00:00:53]} 31.
Ra7 {[%clk 00:34:05]} {[%emt 00:00:42]} Rg5+ {[%clk 00:11:38]} {[%emt
00:03:51]} 32. Kf1 {[%clk 00:32:33]} {[%emt 00:02:01]} Rb5 {[%clk 00:11:22]}
{[%emt 00:00:46]} 33. Kg2 {[%clk 00:32:40]} {[%emt 00:00:24]} Kf6 {[%clk
00:09:14]} {[%emt 00:02:39]} 34. f4 {[%clk 00:32:55]} {[%emt 00:00:15]} g5
{[%clk 00:06:35]} {[%emt 00:03:08]} 35. fxg5+ {[%clk 00:32:59]} {[%emt
00:00:26]} hxg5 {[%clk 00:06:54]} {[%emt 00:00:12]} 36. Kf3 {[%clk 00:31:09]}
{[%emt 00:02:19]} Kg6 {[%clk 00:06:51]} {[%emt 00:00:33]} 37. Ra6 {[%clk
00:26:08]} {[%emt 00:05:32]} Kf5 {[%clk 00:06:41]} {[%emt 00:00:40]} 38. e4+
{[%clk 00:23:21]} {[%emt 00:03:17]} Ke5 {[%clk 00:06:00]} {[%emt 00:01:10]} 39.
Ke3 {[%clk 00:23:34]} {[%emt 00:00:16]} Rb3+ {[%clk 00:03:28]} {[%emt
00:03:03]} 40. Ke2 {[%clk 00:23:45]} {[%emt 00:00:19]} Ra3 {[%clk 00:02:35]}
{[%emt 00:01:24]} 41. f3 {[%clk 00:23:54]} {[%emt 00:00:20]} Kf4 {[%clk
00:02:07]} {[%emt 00:00:58]} 42. Ra7 {[%clk 00:22:53]} {[%emt 00:01:30]} f5
{[%clk 00:01:42]} {[%emt 00:00:56]} 43. exf5 {[%clk 00:22:32]} {[%emt
00:00:51]} exf5 {[%clk 00:02:01]} {[%emt 00:00:12]} 44. Ra6 {[%clk 00:21:18]}
{[%emt 00:01:43]} Ra2+ {[%clk 00:02:10]} {[%emt 00:00:21]} 0-1

[Event "Schack-SM 2023: Sverigemastarklassen"]
[Site "Helsingborg Arena, Mellersta Stenbocksgatan 14, Helsingborg, Sweden"]
[Date "2023.07.07"]
[Round "7.2"]
[White "Seo, Jung Min"]
[Black "Ernst, Thomas"]
[Result "1-0"]
[TimeControl "90 minutes for 40 moves + 30 minutes for the rest of the game + 30 seconds per move from move one."]
[WhiteTitle "IM"]
[BlackTitle "GM"]
[WhiteFideId "1734687"]
[BlackFideId "1700065"]
[WhiteElo "2469"]
[BlackElo "2288"]

1. d4 {[%clk 01:30:44]} {[%emt 00:00:15]} Nf6 {[%clk 01:19:40]} {[%emt
00:11:21]} 2. c4 {[%clk 01:30:52]} {[%emt 00:00:22]} g6 {[%clk 01:20:01]}
{[%emt 00:00:08]} 3. h4 {[%clk 01:31:18]} {[%emt 00:00:04]} c5 {[%clk
01:18:47]} {[%emt 00:01:44]} 4. d5 {[%clk 01:29:38]} {[%emt 00:02:10]} d6
{[%clk 01:18:54]} {[%emt 00:00:23]} 5. Nc3 {[%clk 01:30:04]} {[%emt 00:00:04]}
Bg7 {[%clk 01:19:07]} {[%emt 00:00:17]} 6. e4 {[%clk 01:30:11]} {[%emt
00:00:23]} e6 {[%clk 01:19:04]} {[%emt 00:00:32]} 7. Be2 {[%clk 01:28:50]}
{[%emt 00:01:51]} exd5 {[%clk 01:15:28]} {[%emt 00:04:06]} 8. exd5 {[%clk
01:29:12]} {[%emt 00:00:07]} Qe7 {[%clk 01:14:06]} {[%emt 00:01:52]} 9. Nf3
{[%clk 01:26:14]} {[%emt 00:03:29]} O-O {[%clk 01:11:39]} {[%emt 00:02:57]} 10.
O-O {[%clk 01:26:13]} {[%emt 00:00:31]} Re8 {[%clk 01:06:54]} {[%emt 00:05:15]}
11. Re1 {[%clk 01:22:22]} {[%emt 00:04:20]} Bg4 {[%clk 01:06:45]} {[%emt
00:00:39]} 12. Bf4 {[%clk 01:19:25]} {[%emt 00:03:27]} Nh5 {[%clk 01:03:39]}
{[%emt 00:03:36]} 13. Bh2 {[%clk 01:07:55]} {[%emt 00:12:01]} Bxc3 {[%clk
01:01:20]} {[%emt 00:02:48]} 14. bxc3 {[%clk 01:06:26]} {[%emt 00:02:00]} Nd7
{[%clk 01:01:36]} {[%emt 00:00:14]} 15. Qd2 {[%clk 01:01:43]} {[%emt 00:05:12]}
Bxf3 {[%clk 00:58:50]} {[%emt 00:03:17]} 16. Bxf3 {[%clk 01:01:43]} {[%emt
00:00:31]} Qxh4 {[%clk 00:59:10]} {[%emt 00:00:10]} 17. Bxd6 {[%clk 01:00:51]}
{[%emt 00:01:22]} Nhf6 {[%clk 00:56:03]} {[%emt 00:03:35]} 18. Bf4 {[%clk
00:40:15]} {[%emt 00:21:07]} Rxe1+ {[%clk 00:54:35]} {[%emt 00:01:58]} 19. Rxe1
{[%clk 00:40:02]} {[%emt 00:00:43]} Re8 {[%clk 00:54:52]} {[%emt 00:00:13]} 20.
Rxe8+ {[%clk 00:30:20]} {[%emt 00:10:13]} Nxe8 {[%clk 00:55:11]} {[%emt
00:00:11]} 21. Qe3 {[%clk 00:30:35]} {[%emt 00:00:14]} Qd8 {[%clk 00:53:37]}
{[%emt 00:02:04]} 22. d6 {[%clk 00:29:46]} {[%emt 00:01:20]} b6 {[%clk
00:50:42]} {[%emt 00:03:25]} 23. Bc6 {[%clk 00:22:50]} {[%emt 00:07:25]} Nef6
{[%clk 00:43:33]} {[%emt 00:07:38]} 24. Qe7 {[%clk 00:22:34]} {[%emt 00:00:46]}
Qc8 {[%clk 00:43:50]} {[%emt 00:00:13]} 25. Ba4 {[%clk 00:22:30]} {[%emt
00:00:36]} Kg7 {[%clk 00:42:30]} {[%emt 00:01:49]} 26. Bg5 {[%clk 00:22:48]}
{[%emt 00:00:11]} h6 {[%clk 00:41:57]} {[%emt 00:01:03]} 27. Bxf6+ {[%clk
00:23:06]} {[%emt 00:00:13]} Nxf6 {[%clk 00:42:19]} {[%emt 00:00:08]} 28. d7
{[%clk 00:23:31]} {[%emt 00:00:05]} Nxd7 {[%clk 00:42:36]} {[%emt 00:00:14]} 29.
Qxd7 {[%clk 00:23:56]} {[%emt 00:00:04]} Qa6 {[%clk 00:42:48]} {[%emt
00:00:18]} 30. Bb3 {[%clk 00:23:30]} {[%emt 00:00:56]} Qa5 {[%clk 00:41:47]}
{[%emt 00:01:29]} 31. Qd2 {[%clk 00:23:53]} {[%emt 00:00:09]} Qa6 {[%clk
00:41:50]} {[%emt 00:00:24]} 32. g3 {[%clk 00:24:08]} {[%emt 00:00:19]} Qb7
{[%clk 00:41:19]} {[%emt 00:00:58]} 33. Bd1 {[%clk 00:23:32]} {[%emt 00:01:08]}
Qe4 {[%clk 00:40:47]} {[%emt 00:01:00]} 34. Be2 {[%clk 00:23:22]} {[%emt
00:00:42]} h5 {[%clk 00:40:35]} {[%emt 00:00:41]} 35. Bf1 {[%clk 00:23:40]}
{[%emt 00:00:11]} Qf5 {[%clk 00:38:09]} {[%emt 00:02:55]} 36. Bg2 {[%clk
00:23:44]} {[%emt 00:00:29]} h4 {[%clk 00:35:39]} {[%emt 00:03:00]} 37. Bd5
{[%clk 00:23:21]} {[%emt 00:00:53]} hxg3 {[%clk 00:35:39]} {[%emt 00:00:30]} 38.
fxg3 {[%clk 00:23:39]} {[%emt 00:00:12]} Qe5 {[%clk 00:35:20]} {[%emt
00:00:47]} 39. Kg2 {[%clk 00:23:56]} {[%emt 00:00:13]} f5 {[%clk 00:35:27]}
{[%emt 00:00:23]} 40. Kf2 {[%clk 00:23:50]} {[%emt 00:00:37]} Qe8 {[%clk
00:30:04]} {[%emt 00:05:51]} 41. Qe2 {[%clk 00:23:36]} {[%emt 00:00:46]} Qa4
{[%clk 00:29:33]} {[%emt 00:01:00]} 42. Kg2 {[%clk 00:23:46]} {[%emt 00:00:20]}
Qa3 {[%clk 00:29:19]} {[%emt 00:00:46]} 43. Qe7+ {[%clk 00:18:58]} {[%emt
00:05:18]} Kh6 {[%clk 00:29:35]} {[%emt 00:00:14]} 44. Qf8+ {[%clk 00:19:23]}
{[%emt 00:00:06]} Kg5 {[%clk 00:29:39]} {[%emt 00:00:24]} 45. Qd8+ {[%clk
00:19:45]} {[%emt 00:00:09]} Kh6 {[%clk 00:29:50]} {[%emt 00:00:19]} 46. Qh8+
{[%emt 00:00:34]} 1-0

[ePGN "0.1;DGT LiveChess/2.2.5"]